bitfinex-derivatives/quotes_BTCF0:USTF0_20250806
["timestamp","ask_amount","ask_price","bid_price","bid_amount"]
[1754512985231,0.36971564,115110.0,115100.0,0.2227366]
[1754512985530,0.44079564,115110.0,115100.0,1.79085314]
[1754512985830,0.47192564,115110.0,115100.0,1.79085314]
[1754512986034,0.48630564,115110.0,115100.0,1.79085314]
[1754512986223,0.48930564,115110.0,115100.0,1.79085314]
[1754512986531,0.49230564,115110.0,115100.0,1.79185314]
[1754512987434,0.92018218,115110.0,115100.0,1.79185314]
[1754512987620,0.92018218,115110.0,115100.0,1.3639766]
[1754512987825,0.92018218,115110.0,115100.0,1.79185314]
[1754512988332,0.49230564,115110.0,115100.0,1.79185314]
[1754512989630,0.37571564,115110.0,115100.0,1.79185314]
[1754512989933,0.03904564,115110.0,115100.0,1.79185314]
[1754512990427,0.01491564,115110.0,115100.0,1.79185314]
[1754512994331,0.37571564,115110.0,115100.0,1.79185314]
[1754512994836,0.02413,115120.0,115110.0,0.2938043]
[1754512995135,0.02413,115120.0,115110.0,1.31476084]
[1754512996137,0.02413,115120.0,115110.0,1.31576084]
[1754512996138,0.03013,115120.0,115110.0,1.31576084]
[1754512997935,0.02713,115120.0,115110.0,1.31576084]
[1754512998238,0.02813,115120.0,115110.0,1.31576084]
[1754512998837,0.02613,115120.0,115110.0,1.31676084]
[1754513001139,0.07432,115120.0,115110.0,1.31676084]
[1754513001745,0.43512,115120.0,115110.0,1.31676084]
[1754513002536,0.43512,115120.0,115110.0,0.2958043]
[1754513002735,0.43512,115120.0,115110.0,1.31668084]
[1754513002736,0.88559654,115120.0,115110.0,1.31668084]
[1754513003844,0.89473654,115120.0,115110.0,1.31668084]
[1754513004335,0.89473654,115120.0,115110.0,1.33450343]
[1754513004536,0.46686,115120.0,115110.0,1.33450343]
[1754513005442,0.46686,115120.0,115110.0,0.90662689]
[1754513005644,0.46686,115120.0,115110.0,1.33450343]
[1754513006644,0.6405693,115120.0,115110.0,1.33450343]
[1754513007031,0.89473654,115120.0,115110.0,1.33450343]
[1754513007237,0.70764584,115120.0,115110.0,1.33450343]
[1754513007445,1.06844584,115120.0,115110.0,1.33450343]
[1754513007743,1.06844584,115120.0,115110.0,1.31668084]
[1754513007944,1.06844584,115120.0,115110.0,1.33442758]
[1754513008446,0.89473654,115120.0,115110.0,1.33442758]
[1754513009145,1.08232644,115120.0,115110.0,1.33442758]
[1754513010741,0.90861654,115120.0,115110.0,1.33442758]
[1754513011140,1.08232644,115120.0,115110.0,1.33442758]
[1754513012949,0.72152644,115120.0,115110.0,1.33442758]
[1754513013144,1.08232644,115120.0,115110.0,0.62188674]
[1754513013845,1.08232644,115120.0,115110.0,0.79561164]
[1754513014250,1.08232644,115120.0,115110.0,0.86641164]
[1754513014448,1.08232644,115120.0,115110.0,0.88180164]
[1754513017153,1.08232644,115120.0,115110.0,0.28892164]
[1754513017452,1.08232644,115120.0,115110.0,0.88176164]
[1754513021362,0.65445,115120.0,115110.0,1.33442818]
[1754513022059,1.08232654,115120.0,115110.0,1.33442818]
[1754513022750,0.59903,115120.0,115110.0,1.33442818]
[1754513022951,1.06015654,115120.0,115110.0,1.33442818]
[1754513023152,1.07373654,115120.0,115110.0,1.33442818]
[1754513023361,0.3628,115120.0,115110.0,1.33442818]
[1754513023554,0.46492,115120.0,115110.0,1.33442818]
[1754513023760,1.08008654,115120.0,115110.0,1.33442818]
[1754513023955,1.08008654,115120.0,115110.0,0.90655164]
[1754513024160,1.08008654,115120.0,115110.0,0.62242674]
[1754513024361,1.08008654,115120.0,115110.0,0.84433184]
[1754513024561,1.08008654,115120.0,115110.0,0.88378184]
[1754513025362,1.08008654,115120.0,115110.0,1.31165838]
[1754513026962,1.08008654,115120.0,115110.0,1.33644838]
[1754513029263,1.08008654,115120.0,115110.0,0.90857184]
[1754513029463,1.08008654,115120.0,115110.0,1.33644838]
[1754513030559,0.65221,115120.0,115110.0,1.33644838]
[1754513030859,1.08008654,115120.0,115110.0,1.33644838]
[1754513039470,1.08008654,115120.0,115110.0,0.90857184]
[1754513039672,1.08008654,115120.0,115110.0,1.33644838]
[1754513042766,0.65221,115120.0,115110.0,1.33644838]
[1754513042962,1.08008654,115120.0,115110.0,1.33644838]
[1754513044079,0.4785,115120.0,115110.0,1.33644838]
[1754513044270,0.6522098,115120.0,115110.0,1.33644838]
[1754513045375,1.08008634,115120.0,115110.0,1.33644838]
[1754513053392,0.90637654,115120.0,115110.0,1.33644838]
[1754513053591,1.08008624,115120.0,115110.0,1.33644838]
[1754513053784,1.080203,115120.0,115110.0,1.33656514]
[1754513055792,0.9064933,115120.0,115110.0,1.33656514]
[1754513055995,1.0802029,115120.0,115110.0,1.33656514]
[1754513056192,0.9064933,115120.0,115110.0,1.33656514]
[1754513056385,1.0802029,115120.0,115110.0,1.33656514]
[1754513056585,0.9064933,115120.0,115110.0,1.33656514]
[1754513057592,0.4785,115120.0,115110.0,1.33656514]
[1754513057794,0.9064933,115120.0,115110.0,1.33656514]
[1754513057994,0.4785,115120.0,115110.0,1.33656514]
[1754513058996,0.4785,115120.0,115110.0,0.90857184]
[1754513059198,0.4785,115120.0,115110.0,1.33656514]
[1754513060598,0.6522097,115120.0,115110.0,1.33656514]
[1754513060797,0.4785,115120.0,115110.0,1.33656514]
[1754513061992,0.4785,115120.0,115110.0,0.74380514]
[1754513062393,1.080203,115120.0,115110.0,1.33624514]
[1754513065302,0.4785,115120.0,115110.0,1.33624514]
[1754513065600,0.9064933,115120.0,115110.0,1.33624514]
[1754513066202,1.080203,115120.0,115110.0,1.33624514]
[1754513067607,0.9064933,115120.0,115110.0,1.33624514]
[1754513068001,1.080203,115120.0,115110.0,1.33624514]
[1754513069500,0.6522097,115120.0,115110.0,1.33624514]
[1754513069804,1.080203,115120.0,115110.0,1.33624514]
[1754513070899,0.9064933,115120.0,115110.0,1.33624514]
[1754513071104,1.080203,115120.0,115110.0,1.33624514]
[1754513072514,1.0802029,115120.0,115110.0,1.33624514]
[1754513077807,0.6522096,115120.0,115110.0,1.33624514]
[1754513078008,1.0802029,115120.0,115110.0,1.33624514]
[1754513079409,0.9064933,115120.0,115110.0,1.33624514]
[1754513080509,0.4785,115120.0,115110.0,1.33624514]
[1754513081009,0.4785,115120.0,115110.0,0.90825184]
[1754513081210,0.4785,115120.0,115110.0,1.33624514]
[1754513081511,0.9064933,115120.0,115110.0,1.33624514]
[1754513082511,0.4785,115120.0,115110.0,1.33624514]
[1754513082711,0.46492,115120.0,115110.0,1.33624514]
[1754513082909,0.47969,115120.0,115110.0,1.33624514]
[1754513083301,0.43167,115120.0,115110.0,1.33624514]
[1754513085016,1.07331391,115120.0,115110.0,1.33624514]
[1754513085914,0.89960431,115120.0,115110.0,1.33624514]
[1754513086114,0.53880431,115120.0,115110.0,1.33624514]
[1754513087109,0.89960431,115120.0,115110.0,1.33624514]
[1754513087617,0.47161101,115120.0,115110.0,1.33624514]
[1754513087814,0.11081101,115120.0,115110.0,1.33624514]
[1754513088114,0.47161101,115120.0,115110.0,1.33624514]
[1754513092516,0.47161101,115120.0,115110.0,0.90825184]
[1754513092718,0.47161101,115120.0,115110.0,1.33624514]
[1754513093016,0.64532061,115120.0,115110.0,0.90825184]
[1754513093209,0.64532061,115120.0,115110.0,1.33624514]
[1754513095118,0.28452061,115120.0,115110.0,1.33624514]
[1754513095320,0.11081101,115120.0,115110.0,1.33624514]
[1754513095514,0.47161101,115120.0,115110.0,1.33624514]
[1754513097618,0.11081101,115120.0,115110.0,1.33624514]
[1754513097822,0.47161101,115120.0,115110.0,1.33624514]
[1754513098219,0.11081101,115120.0,115110.0,1.33624514]
[1754513098425,0.47161101,115120.0,115110.0,1.33624514]
[1754513099823,0.11081101,115120.0,115110.0,1.33624514]
[1754513100024,0.47161101,115120.0,115110.0,1.33624514]
[1754513100321,0.28452051,115120.0,115110.0,1.40556323]
[1754513100717,0.64532051,115120.0,115110.0,1.40556323]
[1754513101017,0.64532051,115120.0,115110.0,0.97756993]
[1754513101224,0.64532051,115120.0,115110.0,1.40556323]
[1754513102126,1.07331381,115120.0,115110.0,1.40556323]
[1754513102626,1.07331381,115120.0,115110.0,0.81312323]
[1754513102824,1.07331381,115120.0,115110.0,1.40524323]
[1754513107430,0.64532051,115120.0,115110.0,1.40524323]
[1754513107731,1.07331381,115120.0,115110.0,1.40524323]
[1754513118739,0.64532051,115120.0,115110.0,1.40524323]
[1754513118933,1.07331381,115120.0,115110.0,1.40524323]
[1754513121241,1.07331381,115120.0,115110.0,0.97724993]
[1754513121538,1.07331381,115120.0,115110.0,1.40524323]
[1754513123144,1.07331381,115120.0,115110.0,1.33592514]
[1754513127741,0.89960431,115120.0,115110.0,1.33592514]
[1754513127934,0.47161101,115120.0,115110.0,1.33592514]
[1754513130144,0.47161101,115120.0,115110.0,1.33565396]
[1754513131838,0.64532051,115120.0,115110.0,0.90766066]
[1754513132048,0.11081101,115120.0,115110.0,1.33565396]
[1754513132645,0.11081101,115120.0,115110.0,0.90766066]
[1754513132846,0.11081101,115120.0,115110.0,1.33565396]
[1754513134049,0.47161101,115120.0,115110.0,1.33565396]
[1754513139551,0.47161101,115120.0,115110.0,1.40531249]
[1754513141950,1.07331381,115120.0,115110.0,1.40531249]
[1754513142352,1.07331381,115120.0,115110.0,0.81319249]
[1754513142550,1.07331381,115120.0,115110.0,1.40503249]
[1754513146354,0.64532051,115120.0,115110.0,1.40503249]
[1754513146547,1.07331381,115120.0,115110.0,1.40503249]
[1754513147452,1.07331381,115120.0,115110.0,0.97703919]
[1754513147654,1.07331381,115120.0,115110.0,1.40503249]
[1754513148156,0.64532051,115120.0,115110.0,1.40503249]
[1754513148455,1.07331381,115120.0,115110.0,1.40503249]
[1754513152763,0.64532051,115120.0,115110.0,1.40503249]
[1754513153061,1.07331381,115120.0,115110.0,1.40503249]
[1754513155063,0.89960431,115120.0,115110.0,1.40503249]
[1754513155252,0.89960431,115120.0,115110.0,0.97703919]
[1754513155456,0.89960431,115120.0,115110.0,1.40503249]
[1754513155768,1.07331381,115120.0,115110.0,1.40503249]
[1754513157370,1.07331381,115120.0,115110.0,0.81319249]
[1754513157562,2.09302711,115120.0,115110.0,0.002]
[1754513157864,0.11985,115090.0,115080.0,0.56430676]
[1754513158068,0.48065,115090.0,115080.0,1.38086116]
[1754513158762,0.46689,115090.0,115080.0,1.80885446]
[1754513158956,0.46689,115090.0,115080.0,1.81585446]
[1754513158957,0.43603,115090.0,115080.0,1.81585446]
[1754513159160,0.3628,115090.0,115080.0,1.81585446]
[1754513159661,0.3628,115090.0,115080.0,1.81785446]
[1754513160169,0.002,115090.0,115080.0,2.17865446]
[1754513164172,0.002,115090.0,115080.0,1.32266786]
[1754513164362,0.002,115090.0,115080.0,2.17865446]
[1754513167073,0.02588,115090.0,115080.0,2.17865446]
[1754513167475,0.002,115090.0,115080.0,2.17865446]
[1754513169169,0.05135,115090.0,115080.0,2.17865446]
[1754513169371,0.12185,115090.0,115080.0,2.17865446]
[1754513170076,0.12185,115090.0,115080.0,1.81785446]
[1754513170677,0.12185,115090.0,115080.0,2.17865446]
[1754513170880,0.10809,115090.0,115080.0,1.81785446]
[1754513171379,0.10809,115090.0,115080.0,2.17865446]
[1754513171578,0.02588,115090.0,115080.0,2.17865446]
[1754513171967,0.002,115090.0,115080.0,2.17865446]
[1754513172470,0.002,115090.0,115080.0,1.81785446]
[1754513172778,0.002,115090.0,115080.0,2.17865446]
[1754513173678,0.002,115090.0,115080.0,1.81785446]
[1754513175778,0.12102,115090.0,115080.0,1.22613446]
[1754513175977,0.12102,115090.0,115080.0,1.81789446]
[1754513176276,0.10728,115090.0,115080.0,1.81789446]
[1754513176882,0.10728,115090.0,115080.0,1.7468765]
[1754513179984,0.10728,115090.0,115080.0,2.1076765]
[1754513180285,0.002,115090.0,115080.0,1.7468765]
[1754513181485,0.02671,115090.0,115080.0,1.7468765]
[1754513184686,0.02671,115090.0,115080.0,1.9500354]
[1754513185884,0.02671,115090.0,115080.0,1.7468765]
[1754513186882,0.002,115090.0,115080.0,1.7468765]
[1754513187084,0.002,115090.0,115080.0,1.9500354]
[1754513190788,0.002,115090.0,115080.0,1.9293154]
[1754513196591,0.002,115090.0,115080.0,1.0733288]
[1754513196893,0.09811,115090.0,115080.0,1.9507454]
[1754513197088,0.09811,115090.0,115080.0,1.0947588]
[1754513197289,0.09811,115090.0,115080.0,1.9507454]
[1754513197588,0.06538,115090.0,115080.0,1.9507454]
[1754513198087,0.04237,115090.0,115080.0,1.9507454]
[1754513200595,0.02671,115090.0,115080.0,1.9507454]
[1754513200792,0.002,115090.0,115080.0,1.9507454]
[1754513201393,0.002,115090.0,115080.0,2.02158267]
[1754513204289,0.002,115090.0,115080.0,1.16559607]
[1754513204490,0.002,115090.0,115080.0,2.02158267]
[1754513205989,0.002,115090.0,115080.0,1.42986267]
[1754513206194,0.12097,115090.0,115080.0,1.59354937]
[1754513206395,0.02538,115090.0,115080.0,2.02154267]
[1754513206995,0.002,115090.0,115080.0,2.02154267]
[1754513207794,0.002,115090.0,115080.0,2.38234267]
[1754513208696,0.47069,115100.0,115090.0,0.2611547]
[1754513208896,0.47069,115100.0,115090.0,0.723318]
[1754513209297,0.47977,115100.0,115090.0,0.723318]
[1754513209492,0.11897,115100.0,115090.0,0.723318]
[1754513210095,0.47977,115100.0,115090.0,0.2953247]
[1754513210391,0.48077,115100.0,115090.0,0.726318]
[1754513210892,0.11997,115100.0,115090.0,1.317998]
[1754513211293,0.48077,115100.0,115090.0,1.317998]
[1754513212397,0.3618,115100.0,115090.0,1.317998]
[1754513212599,0.38518,115100.0,115090.0,1.317998]
[1754513212897,0.48077,115100.0,115090.0,1.317998]
[1754513213997,0.11997,115100.0,115090.0,1.317998]
[1754513214490,0.48077,115100.0,115090.0,1.317998]
[1754513214691,0.48077,115100.0,115090.0,0.8900047]
[1754513214990,0.48077,115100.0,115090.0,1.317998]
[1754513219299,0.11997,115100.0,115090.0,1.317998]
[1754513219500,0.48077,115100.0,115090.0,1.317998]
[1754513227210,0.46697,115100.0,115090.0,1.317998]
[1754513231910,0.07139,115100.0,115090.0,1.317998]
[1754513232115,0.06231,115100.0,115090.0,1.317998]
[1754513232816,0.02438,115100.0,115090.0,1.317998]
[1754513234812,0.02438,115100.0,115090.0,1.678798]
[1754513237523,0.02438,115100.0,115090.0,1.317998]
[1754513237821,0.001,115100.0,115090.0,1.317998]
[1754513239822,0.001,115100.0,115090.0,1.678798]
[1754513241022,0.001,115100.0,115090.0,1.317998]
[1754513242127,0.001,115100.0,115090.0,0.726318]
[1754513242319,0.001,115100.0,115090.0,1.317918]
[1754513242623,0.02576,115100.0,115090.0,1.317918]
[1754513243012,0.05851,115100.0,115090.0,1.317918]
[1754513243822,0.02576,115100.0,115090.0,1.317918]
[1754513249531,0.001,115100.0,115090.0,1.317918]
[1754513253132,0.001,115100.0,115090.0,0.8899247]
[1754513253329,0.4289933,115100.0,115090.0,1.317918]
[1754513253528,0.001,115100.0,115090.0,1.317918]
[1754513254030,0.02576,115100.0,115090.0,1.317918]
[1754513255530,0.001,115100.0,115090.0,1.317918]
[1754513268641,0.001,115100.0,115090.0,0.8899247]
[1754513268942,0.001,115100.0,115090.0,1.317918]
[1754513269335,0.02478,115100.0,115090.0,0.8899247]
[1754513269536,0.05923,115100.0,115090.0,1.317918]
[1754513269743,0.07586,115100.0,115090.0,1.317918]
[1754513273946,0.5038533,115100.0,115090.0,1.317918]
[1754513274145,0.8646533,115100.0,115090.0,1.317918]
[1754513274349,0.8866933,115100.0,115090.0,1.318278]
[1754513274547,0.5258933,115100.0,115090.0,1.318278]
[1754513274749,0.8964933,115100.0,115090.0,1.318278]
[1754513274950,0.5500633,115100.0,115090.0,1.318278]
[1754513275151,1.0846027,115100.0,115090.0,1.318278]
[1754513275854,1.0846027,115100.0,115090.0,1.318318]
[1754513276448,1.0846027,115100.0,115090.0,0.8903247]
[1754513276653,1.0846027,115100.0,115090.0,1.318318]
[1754513279552,1.0846027,115100.0,115090.0,0.8903247]
[1754513279754,1.0846027,115100.0,115090.0,0.2983247]
[1754513279953,1.0846027,115100.0,115090.0,0.003]
[1754513280148,1.0846027,115100.0,115090.0,0.59616]
[1754513280455,1.0846027,115100.0,115090.0,0.6534]
[1754513280755,1.0846027,115100.0,115090.0,0.07548]
[1754513280954,1.0846027,115100.0,115090.0,0.65393]
[1754513281452,1.6778827,115100.0,115090.0,0.01295]
[1754513281648,1.6778827,115100.0,115090.0,0.003]
[1754513285859,0.2222248,115090.0,115080.0,1.04092648]
[1754513286060,1.0836181,115090.0,115080.0,1.04092648]
[1754513286863,0.9098633,115090.0,115080.0,1.04092648]
[1754513287158,0.9098633,115090.0,115080.0,1.46891978]
[1754513287361,1.0836181,115090.0,115080.0,1.46991978]
[1754513287660,1.0846181,115090.0,115080.0,1.47291978]
[1754513292662,1.0846181,115090.0,115080.0,1.04492648]
[1754513292865,1.0846181,115090.0,115080.0,1.47291978]
[1754513296266,1.0846181,115090.0,115080.0,1.04492648]
[1754513296466,1.0846181,115090.0,115080.0,1.47291978]
[1754513297558,0.9108633,115090.0,115080.0,1.47291978]
[1754513297758,1.084618,115090.0,115080.0,1.47291978]
[1754513300167,1.084618,115090.0,115080.0,1.4050908]
[1754513301566,0.9108633,115090.0,115080.0,1.4050908]
[1754513301766,0.7897933,115090.0,115080.0,0.9770975]
[1754513301963,0.8306333,115090.0,115080.0,1.4050908]
[1754513302171,0.8852833,115090.0,115080.0,1.4050908]
[1754513302368,0.8950033,115090.0,115080.0,1.4050908]
[1754513302666,0.9094033,115090.0,115080.0,1.4050908]
[1754513305171,0.48141,115090.0,115080.0,1.4050908]
[1754513305372,0.9094033,115090.0,115080.0,1.4050908]
[1754513307472,0.4769233,115090.0,115080.0,1.4050908]
[1754513307677,0.5486033,115090.0,115080.0,1.4050908]
[1754513308664,0.48141,115090.0,115080.0,1.4050908]
[1754513308963,0.12061,115090.0,115080.0,1.4050908]
[1754513309168,0.5486033,115090.0,115080.0,1.4050908]
[1754513311984,0.5342033,115090.0,115080.0,1.4050908]
[1754513312187,0.5486033,115090.0,115080.0,1.4050908]
[1754513314281,0.12061,115090.0,115080.0,1.4050908]
[1754513314674,0.001,115090.0,115080.0,1.8330841]
[1754513314878,0.001,115090.0,115080.0,2.1938841]
[1754513325499,0.001,115090.0,115080.0,2.397043]
[1754513328594,0.40099,115120.0,115110.0,0.1998244]
[1754513328801,1.09163678,115130.0,115120.0,0.2918793]
[1754513328990,1.09163678,115130.0,115120.0,0.7198726]
[1754513329699,0.66364348,115130.0,115120.0,0.7198726]
[1754513329897,1.09163678,115130.0,115120.0,0.7198726]
[1754513330294,0.91794258,115130.0,115120.0,0.7198726]
[1754513330898,0.92094258,115130.0,115120.0,0.7198726]
[1754513332503,0.92094258,115130.0,115120.0,0.7208726]
[1754513332504,0.56314258,115130.0,115120.0,0.7208726]
[1754513332694,0.56014258,115130.0,115120.0,0.7218726]
[1754513332995,0.91794258,115130.0,115120.0,0.7208726]
[1754513333193,1.09263678,115130.0,115120.0,0.7258726]
[1754513334199,0.91894258,115130.0,115120.0,0.7258726]
[1754513335500,1.09263678,115130.0,115120.0,0.7258726]
[1754513341803,1.09263678,115130.0,115120.0,1.7958726]
[1754513346406,1.09263678,115130.0,115120.0,1.3678793]
[1754513346606,1.09263678,115130.0,115120.0,1.9609593]
[1754513348210,1.09263678,115130.0,115120.0,1.19417]
[1754513348408,1.09263678,115130.0,115120.0,1.71672]
[1754513348606,1.09263678,115130.0,115120.0,0.8204292]
[1754513348806,1.09263678,115130.0,115120.0,0.8672892]
[1754513349010,1.09263678,115130.0,115120.0,0.69358]
[1754513349203,1.09263678,115130.0,115120.0,0.8908792]
[1754513350006,1.09263678,115130.0,115120.0,0.8898792]
[1754513350208,1.09263678,115130.0,115120.0,0.8878792]
[1754513353622,1.09263678,115130.0,115120.0,0.71417]
[1754513354617,1.09263678,115130.0,115120.0,0.8878793]
[1754513362225,0.66464348,115130.0,115120.0,0.8878793]
[1754513362414,1.09263678,115130.0,115120.0,0.8878793]
[1754513362615,0.66464348,115130.0,115120.0,0.8878793]
[1754513362814,1.09263678,115130.0,115120.0,0.8878793]
[1754513363222,1.09263678,115130.0,115120.0,1.3158726]
[1754513369922,1.09263678,115130.0,115120.0,0.8878793]
[1754513370127,1.09263678,115130.0,115120.0,1.3158726]
[1754513370629,1.09263678,115130.0,115120.0,0.8878793]
[1754513370927,1.09263678,115130.0,115120.0,1.3158726]
[1754513377131,1.09263678,115130.0,115120.0,0.8878793]
[1754513377331,1.09263678,115130.0,115120.0,1.3158726]
[1754513380739,1.09263678,115130.0,115120.0,0.8878793]
[1754513383936,1.09263678,115130.0,115120.0,0.71417]
[1754513384232,1.09263678,115130.0,115120.0,0.71357]
[1754513385537,1.09263678,115130.0,115120.0,0.8872791]
[1754513385836,1.09263678,115130.0,115120.0,0.71357]
[1754513386336,1.09263678,115130.0,115120.0,0.8872792]
[1754513386536,1.09263678,115130.0,115120.0,0.71357]
[1754513386737,1.09263678,115130.0,115120.0,0.8872792]
[1754513387326,1.06883678,115130.0,115120.0,0.71446]
[1754513387735,1.06883678,115130.0,115120.0,0.8881691]
[1754513388235,1.06883678,115130.0,115120.0,0.71446]
[1754513388438,1.06883678,115130.0,115120.0,0.8881691]
[1754513388835,0.66215348,115130.0,115120.0,0.8881691]
[1754513389232,1.09014678,115130.0,115120.0,0.8881691]
[1754513389841,1.09014678,115130.0,115120.0,1.3161624]
[1754513390937,1.03684678,115130.0,115120.0,1.2607124]
[1754513391143,1.06883678,115130.0,115120.0,1.2931424]
[1754513392241,0.66215348,115130.0,115120.0,1.2931424]
[1754513392443,1.09014678,115130.0,115120.0,1.2931424]
[1754513392642,1.09014678,115130.0,115120.0,1.3161624]
[1754513392837,1.09014678,115130.0,115120.0,1.3163224]
[1754513393041,1.09014678,115130.0,115120.0,1.3163225]
[1754513393538,1.09014678,115130.0,115120.0,0.8883292]
[1754513403262,1.09014678,115130.0,115120.0,1.3163225]
[1754513404162,1.45094678,115130.0,115120.0,1.3163225]
[1754513405066,1.45094678,115130.0,115120.0,0.8883292]
[1754513405251,1.45094678,115130.0,115120.0,1.3163225]
[1754513406560,1.00817348,115130.0,115120.0,1.3163225]
[1754513406765,1.43616678,115130.0,115120.0,1.3163225]
[1754513407165,1.45001678,115130.0,115120.0,1.3163225]
[1754513408360,0.91552258,115130.0,115120.0,1.3163225]
[1754513408565,1.08921668,115130.0,115120.0,1.3163225]
[1754513409364,0.47367928,115130.0,115120.0,1.3163225]
[1754513409563,0.46498,115130.0,115120.0,1.3163225]
[1754513410468,0.6386741,115130.0,115120.0,1.3163225]
[1754513410664,0.6534041,115130.0,115120.0,1.3163225]
[1754513412170,0.47971,115130.0,115120.0,1.3163225]
[1754513413172,0.11891,115130.0,115120.0,1.3163225]
[1754513413466,0.47971,115130.0,115120.0,1.3163225]
[1754513413672,0.2926041,115130.0,115120.0,1.3163225]
[1754513413871,0.6534041,115130.0,115120.0,1.3163225]
[1754513415271,0.2926041,115130.0,115120.0,1.3163225]
[1754513415460,0.6534041,115130.0,115120.0,1.3163225]
[1754513416564,0.47971,115130.0,115120.0,1.3163225]
[1754513417470,0.43299,115130.0,115120.0,1.3163225]
[1754513418067,0.4666,115130.0,115120.0,1.3163225]
[1754513419174,0.3618,115130.0,115120.0,1.3163225]
[1754513419674,0.4495,115130.0,115120.0,0.8883292]
[1754513419976,0.48311,115130.0,115120.0,1.3163225]
[1754513421374,0.6568041,115130.0,115120.0,0.8883292]
[1754513421574,1.0847974,115130.0,115120.0,1.3163225]
[1754513421876,0.9111033,115130.0,115120.0,1.3163225]
[1754513422274,1.0847974,115130.0,115120.0,1.3163225]
[1754513422477,0.6568041,115130.0,115120.0,1.3163225]
[1754513423074,0.12231,115130.0,115120.0,1.3163225]
[1754513423276,0.48311,115130.0,115120.0,1.3163225]
[1754513424075,0.6568041,115130.0,115120.0,1.3163225]
[1754513424577,1.0847974,115130.0,115120.0,1.3163225]
[1754513424768,0.5503033,115130.0,115120.0,1.3163225]
[1754513424973,1.0847974,115130.0,115120.0,1.3163225]
[1754513426878,0.7239974,115130.0,115120.0,1.3163225]
[1754513427080,0.5503033,115130.0,115120.0,1.3163225]
[1754513427279,0.7239974,115130.0,115120.0,1.3163225]
[1754513427483,0.7239974,115130.0,115120.0,0.8883292]
[1754513427775,0.7239974,115130.0,115120.0,1.3163225]
[1754513427973,1.0847974,115130.0,115120.0,1.3163225]
[1754513428281,0.7239974,115130.0,115120.0,1.3163225]
[1754513428580,1.0847974,115130.0,115120.0,1.3163225]
[1754513433984,0.6568041,115130.0,115120.0,0.8883292]
[1754513434185,1.0847974,115130.0,115120.0,1.3163225]
[1754513435287,1.0700674,115130.0,115120.0,1.2463825]
[1754513435487,1.0847974,115130.0,115120.0,1.2920525]
[1754513435786,1.0847974,115130.0,115120.0,0.8886491]
[1754513436178,0.6568041,115130.0,115120.0,1.3166424]
[1754513436586,1.0847974,115130.0,115120.0,1.3166424]
[1754513437280,1.0847974,115130.0,115120.0,1.1429333]
[1754513437482,1.0847974,115130.0,115120.0,1.3166425]
[1754513438888,0.6568041,115130.0,115120.0,1.3166425]
[1754513439087,1.0847974,115130.0,115120.0,1.3166425]
[1754513443491,0.6568041,115130.0,115120.0,1.3166425]
[1754513443690,1.0847974,115130.0,115120.0,1.3166425]
[1754513444586,1.0847973,115130.0,115120.0,1.3166425]
[1754513448794,0.656804,115130.0,115120.0,1.3166425]
[1754513448994,1.0847973,115130.0,115120.0,1.3166425]
[1754513449192,1.0847974,115130.0,115120.0,1.3166425]
[1754513452410,0.6568041,115130.0,115120.0,1.3166425]
[1754513453807,0.48311,115130.0,115120.0,1.3166425]
[1754513454013,0.12231,115130.0,115120.0,1.3166425]
[1754513454508,0.48311,115130.0,115120.0,1.3166425]
[1754513454812,0.12231,115130.0,115120.0,1.3166425]
[1754513455009,0.48311,115130.0,115120.0,1.3166425]
[1754513455712,0.6568041,115130.0,115120.0,1.3166425]
[1754513456012,0.2960041,115130.0,115120.0,1.3166425]
[1754513456601,0.001,115130.0,115120.0,1.69475085]
[1754513456915,0.001,115130.0,115120.0,1.99475085]
[1754513457106,0.001,115130.0,115120.0,2.42274415]
[1754513457411,0.001,115130.0,115120.0,1.99475085]
[1754513458015,0.001,115130.0,115120.0,1.69475085]
[1754513458513,0.001,115130.0,115120.0,1.99475085]
[1754513459021,0.001,115130.0,115120.0,1.69475085]
[1754513463116,0.001,115130.0,115120.0,2.12274415]
[1754513463318,0.001,115130.0,115120.0,1.26675755]
[1754513463819,0.08106,115150.0,115140.0,0.0197478]
[1754513464016,0.09603,115150.0,115140.0,0.8100556]
[1754513464419,0.12025,115150.0,115140.0,1.2380489]
[1754513464609,0.48105,115150.0,115140.0,1.2380489]
[1754513465012,0.48305,115150.0,115140.0,1.2400489]
[1754513465317,0.12225,115150.0,115140.0,1.2400489]
[1754513466519,0.48305,115150.0,115140.0,1.2400489]
[1754513466907,0.12225,115150.0,115140.0,1.2400489]
[1754513467316,0.48305,115150.0,115140.0,1.2400489]
[1754513467815,0.12225,115150.0,115140.0,1.2400489]
[1754513468221,0.44295,115150.0,115140.0,1.2410489]
[1754513468522,0.46808,115150.0,115140.0,1.2410489]
[1754513468722,0.48305,115150.0,115140.0,1.2410489]
[1754513470414,0.12225,115150.0,115140.0,1.2410489]
[1754513471326,0.48305,115150.0,115140.0,1.2410489]
[1754513471623,0.12225,115150.0,115140.0,1.2410489]
[1754513471919,0.48305,115150.0,115140.0,1.2410489]
[1754513472324,0.12225,115150.0,115140.0,1.2410489]
[1754513473217,0.12225,115150.0,115140.0,0.8130556]
[1754513473423,0.12225,115150.0,115140.0,1.2410489]
[1754513473623,0.48305,115150.0,115140.0,1.2410489]
[1754513474319,0.9110433,115150.0,115140.0,1.2410489]
[1754513474518,0.48305,115150.0,115140.0,1.2410489]
[1754513475018,0.12225,115150.0,115140.0,1.2410489]
[1754513475516,0.48305,115150.0,115140.0,1.2410489]
[1754513476326,0.12225,115150.0,115140.0,1.2410489]
[1754513476511,0.48305,115150.0,115140.0,1.2410489]
[1754513476914,0.5502433,115150.0,115140.0,1.2410489]
[1754513477125,0.9110433,115150.0,115140.0,1.2410489]
[1754513479028,0.5502433,115150.0,115140.0,1.2410489]
[1754513479526,0.12225,115150.0,115140.0,1.2410489]
[1754513479727,0.48305,115150.0,115140.0,1.2410489]
[1754513481323,0.9110433,115150.0,115140.0,1.2410489]
[1754513481525,1.084706,115150.0,115140.0,0.6492489]
[1754513481831,1.069736,115150.0,115140.0,0.1964256]
[1754513482136,1.083526,115150.0,115140.0,1.1993289]
[1754513482318,1.083526,115150.0,115140.0,1.2246989]
[1754513482721,1.0835259,115150.0,115140.0,1.2246989]
[1754513482925,0.7227259,115150.0,115140.0,1.2246989]
[1754513483126,1.0835259,115150.0,115140.0,1.2246989]
[1754513483430,1.0835259,115150.0,115140.0,0.7683577]
[1754513483830,1.0835259,115150.0,115140.0,0.7788377]
[1754513484028,1.0835259,115150.0,115140.0,0.8034277]
[1754513484228,1.0835259,115150.0,115140.0,1.231421]
[1754513485030,1.0835259,115150.0,115140.0,0.639741]